[Event "Teplice Open 2022"]
[Site "Teplice"]
[Date "2022.06.25"]
[Round "8.9"]
[White "Romanov, Evgeny"]
[Black "Levin, Guy"]
[Result "1/2-1/2"]
[ECO "B23"]
[WhiteElo "2573"]
[BlackElo "2351"]
[Annotator "TA"]
[PlyCount "60"]
[EventDate "2022.06.18"]
[EventType "swiss"]
[EventCountry "CZE"]
[SourceTitle "playchess.com"]
[Source "ChessBase"]
[SourceQuality "1"]
[TimeControl "40/5400+30:1800+30"]

{[%evp 14,60,-8,-9,-8,-4,-14,-10,-2,-12,-19,-3,-10,-15,-16,-22,-14,-25,-22,-43,-37,-41,-41,-41,-40,-46,-48,-63,-67,-86,-90,-97,-78,-103,-98,-111,-112,-195,-183,-254,-47,-39,-44,-51,-38,-64,0,0,14]} 1. e4 {[%emt 0:11:11]} c5 {[%emt 0:00:08]} 2. Nc3 {[%emt 0:00:10]} Nc6 {[%emt 0:00:24]} 3. f4 {[%emt 0:01:32]} g6 {[%emt 0:00:19]} 4. Nf3 {[%emt 0:00:14]} Bg7 {[%emt 0:00:14]} 5. Bb5 {[%emt 0:00:16]} Nd4 {[%emt 0:02:03]} 6. O-O {[%emt 0:00:11]} Nxb5 {[%emt 0:12:27]} 7. Nxb5 {[%emt 0:00:10]} d5 {[%emt 0:00:02]} 8. d3 {[%emt 0:02:32][%cal Bd2d3,Bd3e4,Be4e5][%mdl 32]} a6 {[%emt 0:17:52] [#] Threatens to win with ...dxe4. B23: Closed Sicilian: Lines without g3.} 9. Nc3 {[%emt 0:01:45]} Bxc3 {[%emt 0:02:04]} (9... dxe4 {with more complications.} 10. dxe4 Qxd1 11. Rxd1 Bxc3 12. bxc3 Nf6) 10. bxc3 {[%emt 0:00:11]} dxe4 {[%emt 0:00:02]} 11. dxe4 {[%emt 0:04:28]} Qxd1 $1 {[%emt 0:00:11]} 12. Rxd1 {[%emt 0:00:05]} Nf6 {[%emt 0:00:09]} 13. e5 {[%emt 0:03:33]} Ne4 {[%emt 0:02:05] [#]} 14. Bb2 $146 {[%emt 0:05:46]} ({Predecessor:} 14. Rd3 Bd7 15. Re3 Bc6 16. Ba3 O-O-O 17. Rae1 Nd2 18. Bxc5 Nxf3+ 19. gxf3 e6 20. Bd6 {½-½ (45) Bogdanov,D (2111)-Kongsted,H (2280) Farum 2003}) 14... Bd7 {[%emt 0:02:36]} 15. c4 {[%emt 0:10:00][%cal Oe5e6] [#] Black must now prevent e6!} Bc6 {[%emt 0:00:56]} 16. Rd3 {[%emt 0:00:19]} O-O {[%emt 0:01:06]} 17. Re1 {[%emt 0:02:51]} Rfd8 {[%emt 0:09:50]} 18. a3 {[%emt 0:00:32]} b5 {[%emt 0:12:49]} 19. cxb5 {[%emt 0:03:14]} axb5 {[%emt 0:00:02]} 20. Red1 {[%emt 0:21:20]} Rdb8 {[%emt 0:00:20]} 21. Rb3 {[%emt 0:00:30]} e6 {[%emt 0:01:54]} 22. Rbd3 {[%emt 0:08:09]} Bd5 {[%emt 0:01:10]} 23. Bc1 {[%emt 0:05:52]} Ra4 {[%emt 0:01:25]} 24. Nd2 {[%emt 0:02:05]} Nxd2 {[%emt 0:05:47]} 25. Bxd2 {[%emt 0:00:06]} (25. R3xd2 $17 b4 26. axb4) 25... Be4 $19 {[%emt 0:09:54]} 26. Rd7 {[%emt 0:03:42]} (26. Re3 {is a better defense.}) 26... Bxc2 $2 {[%emt 0:00:55]} (26... Rxa3 $19 27. Bc1 Ra2) 27. Rc1 $15 {[%emt 0:00:21]} Rc4 {[%emt 0:00:16] Hoping for ...b4.} 28. Rc7 $1 {[%emt 0:00:19]} Rd8 {[%emt 0:03:50]} 29. Be3 {[%emt 0:00:53]} h5 {[%emt 0:02:57]} (29... Rd5 $15) 30. Rxc5 $11 {[%emt 0:03:04]} Rxc5 {[%emt 0:00:28] Weighted Error Value: White=0.15 (very precise) /Black=0.20 (precise)} 1/2-1/2

[Event "Teplice Open 2022"]
[Site "Teplice"]
[Date "2022.06.25"]
[Round "8.10"]
[White "Kusa, Jakub"]
[Black "Pultinevicius, Paulius"]
[Result "0-1"]
[ECO "E94"]
[WhiteElo "2338"]
[BlackElo "2536"]
[Annotator "TA"]
[PlyCount "76"]
[EventDate "2022.06.18"]
[EventType "swiss"]
[EventCountry "CZE"]
[SourceTitle "playchess.com"]
[Source "ChessBase"]
[SourceQuality "1"]
[TimeControl "40/5400+30:1800+30"]

{[%evp 16,76,43,32,41,34,30,30,47,43,44,48,61,0,-10,0,0,0,0,-32,-29,-23,-27,-18,-7,-22,-33,-33,0,-69,-73,-74,-80,-80,-57,-79,-79,-85,-79,-89,-79,-77,-74,-107,0,-154,-158,-146,-159,-195,-195,-403,-368,-355,-333,-29952,-29963,-7778,-10068,-29984,-29982,-29977,-5836]} 1. d4 {[%emt 0:00:07]} Nf6 {[%emt 0:01:49]} 2. Nf3 {[%emt 0:00:27]} g6 {[%emt 0:01:26]} 3. c4 {[%emt 0:00:49]} Bg7 {[%emt 0:00:06]} 4. Nc3 {[%emt 0:00:17]} O-O {[%emt 0:00:53]} 5. e4 {[%emt 0:01:08]} d6 {[%emt 0:01:13]} 6. Be2 {[%emt 0:00:45]} c6 {[%emt 0:02:54]} 7. O-O {[%emt 0:02:16]} e5 {[%emt 0:00:08]} 8. Re1 {[%emt 0:03:53]} Na6 {[%emt 0:03:48]} 9. Be3 {[%emt 0:05:59]} exd4 {[%emt 0:01:45] 9...Qe7 is a critical line. E94: King's Indian: Classical: 6 Be2 e5 7 0-0: Various Black 7th moves.} 10. Nxd4 {[%emt 0:01:24]} (10. Qxd4 Nd5 $1 11. Qd2 Nxe3 12. Qxe3 Qb6 $15) 10... Re8 {[%emt 0:00:28]} 11. f3 {[%emt 0:03:28]} d5 {[%emt 0:02:28] White has an edge.} 12. cxd5 {[%emt 0:07:40]} Nxd5 {[%emt 0:18:32]} 13. Nxd5 {[%emt 0:08:18]} ({Of course not} 13. exd5 Rxe3 14. Qd2 Qb6 $11) 13... cxd5 {[%emt 0:00:04]} 14. Bb5 {[%emt 0:01:11]} (14. Bxa6 $14 bxa6 15. Nc6) 14... Bd7 $11 {[%emt 0:00:43]} 15. Bxa6 {[%emt 0:01:15]} bxa6 {[%emt 0:00:05]} 16. exd5 {[%emt 0:01:48]} Qh4 {[%emt 0:00:26][%cal Oe8e3] [#] ...Rxe3! is the strong threat.} 17. f4 $146 {[%emt 0:06:58]} (17. Nc6 $5 {[%cal Re3f2]}) ({Predecessor:} 17. Nb3 Bxb2 18. Bf2 Qc4 19. Rb1 Bc3 20. Rc1 Bb5 21. Rxe8+ Rxe8 22. Qc2 Re1+ 23. Rxe1 Bxe1 24. Qxc4 Bxf2+ 25. Kxf2 Bxc4 {1-0 (50) Kvetny,M (2201)-Aguera Naredo,J (2417) Basel 2013}) 17... Qf6 $1 {[%emt 0:06:33][%cal Oe8e3] And now ...Rxe3! would win.} 18. Bf2 {[%emt 0:11:15]} Qxf4 {[%emt 0:07:25]} 19. Qf3 {[%emt 0:06:21]} Qd2 {[%emt 0:03:26]} 20. Nc6 {[%emt 0:02:08]} Qxb2 {[%emt 0:06:57]} 21. d6 {[%emt 0:07:29]} Kh8 {[%emt 0:12:27]} 22. Rad1 {[%emt 0:05:46]} (22. Ne7 $1 $11) 22... Rxe1+ $15 {[%emt 0:06:12]} (22... Qxa2 $2 23. Re7 Bxc6 24. Qxc6 $18) 23. Rxe1 {[%emt 0:00:28][%cal Oc6e5] Strongly threatening Ne5!} Re8 $36 {[%emt 0:03:40][%mdl 2048] Against Ne5. Threatens to win with ...Rxe1+. White is under strong pressure.} (23... Qxa2 $2 24. Nb4 Qxf2+ 25. Qxf2 $18) 24. Ne7 {[%emt 0:03:24]} Qxa2 {[%emt 0:03:13]} 25. Qb7 {[%emt 0:02:59]} Qa4 {[%emt 0:01:30]} 26. Qxa7 {[%emt 0:01:06]} h5 {[%emt 0:00:56]} 27. h3 {[%emt 0:02:28]} Kh7 {[%emt 0:00:37]} 28. Qb7 {[%emt 0:01:25]} a5 {[%emt 0:02:39]} 29. Qd5 {[%emt 0:01:58]} Be6 {[%emt 0:01:40]} (29... Rf8 $1 $17 30. Kh2 Qb4) 30. Qd3 $2 {[%emt 0:06:00]} (30. Rxe6 $11 fxe6 31. Qd3 Qa1+ 32. Kh2 Qe5+ 33. Kh1) 30... Qd7 $1 $17 {[%emt 0:00:44]} 31. Rc1 {[%emt 0:01:51]} Rd8 $1 {[%emt 0:03:45]} 32. Rc6 {[%emt 0:01:49] [#]} Bf6 $1 {[%emt 0:04:01] This bishop pair is nice.} 33. Qa6 $2 {[%emt 0:01:07]} (33. Qe4) 33... Bxe7 {[%emt 0:02:17]} 34. dxe7 {[%emt 0:00:05]} Qxe7 {[%emt 0:00:09] Hoping for ...Rd1+.} 35. Qxa5 $2 {[%emt 0:00:26]} (35. Rc1 $19) 35... Rd1+ {[%emt 0:00:06]} 36. Kh2 {[%emt 0:00:28]} Bd5 {[%emt 0:00:33] ( -> ...Qe2)} 37. Rc3 {[%emt 0:01:49]} Qe5+ {[%emt 0:00:19]} 38. Bg3 {[%emt 0:00:49]} Qe2 {[%emt 0:00:22] Weighted Error Value: White=0.78/Black=0.07 (flawless)} (38... Qe4 $142 39. Qxd5 Rxd5 40. Rc1 Rd2 41. Rg1 f5 42. Bc7 g5 43. Kh1 f4 44. Ba5 Re2 45. Bd8 f3 46. Bc7 Rxg2 47. Rd1 {[#]} Rh2+ $3 {[%mdl 512]} 48. Kg1 Qe3+ 49. Kxh2 Qf2+ 50. Kh1 Qg2#) 0-1

[Event "Teplice Open 2022"]
[Site "Teplice"]
[Date "2022.06.25"]
[Round "8.11"]
[White "Sokolovsky, Yahli"]
[Black "Kozak, Adam"]
[Result "1/2-1/2"]
[ECO "C70"]
[WhiteElo "2369"]
[BlackElo "2532"]
[Annotator "TA"]
[PlyCount "60"]
[EventDate "2022.06.18"]
[EventType "swiss"]
[EventCountry "CZE"]
[SourceTitle "playchess.com"]
[Source "ChessBase"]
[SourceQuality "1"]
[TimeControl "40/5400+30:1800+30"]

{[%evp 9,60,55,64,48,86,68,92,66,61,60,56,79,135,-17,84,78,70,75,122,49,64,53,88,92,79,81,87,106,106,70,77,9,23,0,0,0,0,0,33,25,174,143,262,195,236,132,120,21,150,148,163,66,63]} 1. e4 {[%emt 0:00:03][%cal Be2e4,Be4e5][%mdl 32]} e5 {[%emt 0:12:20]} 2. Nf3 {[%emt 0:00:06]} Nc6 {[%emt 0:00:09]} 3. Bb5 {[%emt 0:00:03]} a6 {[%emt 0:00:12]} 4. Ba4 {[%emt 0:00:05]} f5 {[%emt 0:00:07]} 5. d4 {[%emt 0:01:07]} exd4 {[%emt 0:00:18]} 6. e5 {[%emt 0:00:36] C70: Ruy Lopez: 3...a6 4 Ba4, Norwegian and Delayed Schliemann.} b5 $1 {[%emt 0:00:07][%mdl 4] is more profitable than 6...Bc5 at the moment.} 7. Bb3 {[%emt 0:00:03][%mdl 1024] Black must now prevent 0-0. White has strong compensation.} Bb7 {[%emt 0:00:12]} 8. a4 {[%emt 0:01:01] White is better.} ({Much weaker is} 8. c3 Na5 $11) 8... Na5 {[%emt 0:00:34] [#]} 9. Ba2 $146 {[%emt 0:01:03]} ({Predecessor:} 9. Bxg8 Rxg8 10. Nxd4 Qh4 11. O-O Bc5 12. Nf3 Qh5 13. axb5 axb5 14. Nc3 Nc4 15. Rxa8+ Bxa8 16. Nxb5 Bxf3 17. gxf3 {½-½ (45) Wachinger,N (2376)-Demuth,A (2496) Terme Catez 2022}) 9... c5 {[%emt 0:01:09]} 10. O-O {[%emt 0:06:40]} Ne7 {[%emt 0:01:02] [#]} (10... b4 $142) 11. Bg5 $2 {[%emt 0:23:39]} (11. Re1 $1 $16) 11... Nc4 {[%emt 0:21:06]} (11... Qb6 $1 $11) 12. c3 $16 {[%emt 0:14:10]} h6 {[%emt 0:38:22]} 13. Bc1 {[%emt 0:12:08]} Nb6 {[%emt 0:10:58]} ({Of course not} 13... Bxf3 14. Qxf3 Nxe5 15. Qd1 $11) (13... Qb6 $142) 14. Nh4 {[%emt 0:10:06]} (14. Na3 $16) 14... Qc7 $14 {[%emt 0:01:30]} (14... bxa4 $2 15. Qh5+ g6 16. Nxg6 $18) 15. cxd4 {[%emt 0:02:44]} c4 {[%emt 0:03:42] [#]} 16. Nxf5 $1 {[%emt 0:15:22]} Nxf5 {[%emt 0:00:08]} 17. Qh5+ {[%emt 0:00:02]} Kd8 {[%emt 0:00:08][%cal Oc7c6]} 18. Qxf5 {[%emt 0:00:04][%cal Oc1h6]} Qc6 {[%emt 0:00:58][%csl Gb7][%cal Rc6g2]} 19. f3 {[%emt 0:01:53] Threatens to win with Nc3.} Nxa4 {[%emt 0:00:55]} 20. b3 {[%emt 0:02:20]} (20. Qg4 $16) 20... Qd5 $11 {[%emt 0:01:54][%csl LRb3,LRd4]} 21. Qe4 {[%emt 0:06:35]} Qxe4 {[%emt 0:00:43]} 22. fxe4 {[%emt 0:00:01]} cxb3 {[%emt 0:00:09]} 23. Bxb3 {[%emt 0:00:01]} Bxe4 {[%emt 0:00:12]} 24. Bd2 {[%emt 0:00:44] Strongly threatening Ba5+.} Bd3 {[%emt 0:05:02]} (24... a5 $1 $11) 25. Ba5+ {[%emt 0:00:33]} Ke8 {[%emt 0:00:31]} (25... Kc8 $16) 26. Rf3 {[%emt 0:01:48]} Be4 {[%emt 0:00:30] [#]} 27. Rf4 {[%emt 0:00:04]} (27. Bf7+ $1 $18 Ke7 28. Rf2) 27... Bg6 $16 {[%emt 0:00:13]} 28. Bxa4 {[%emt 0:00:56] White is more active.} ({White should play} 28. Nd2 $16) 28... Bxb1 {[%emt 0:00:18]} (28... bxa4 $11 29. Nc3 Rc8) 29. Bb3 {[%emt 0:00:20]} ({Not} 29. Rxb1 bxa4 30. Ra1 a3 $11) 29... Bg6 {[%emt 0:00:03] Against Bf7+} 30. Rc1 {[%emt 0:00:39]} (30. Be1 $18 {Bd5 is the strong threat.} Be7 31. Bd5) 30... Be7 {[%emt 0:00:13] Weighted Error Value: White=0.38/Black=0.39} 1/2-1/2

[Event "Teplice Open 2022"]
[Site "Teplice"]
[Date "2022.06.25"]
[Round "8.12"]
[White "Blomqvist, Erik"]
[Black "Stijve, Theo"]
[Result "1-0"]
[ECO "B45"]
[WhiteElo "2523"]
[BlackElo "2341"]
[Annotator "TA"]
[PlyCount "88"]
[EventDate "2022.06.18"]
[EventType "swiss"]
[EventCountry "CZE"]
[SourceTitle "playchess.com"]
[Source "ChessBase"]
[SourceQuality "1"]
[TimeControl "40/5400+30:1800+30"]

{[%evp 21,88,25,29,32,31,34,37,34,36,31,45,32,35,32,41,41,38,33,40,26,31,-14,104,91,98,95,86,94,89,110,119,120,187,56,58,66,346,346,341,344,339,323,298,248,531,508,1431,1081,1205,1222,1364,1113,1205,546,5535,5010,29943,12848,29936,6215,29959,29956,29966,29970,29970,29971,29980,29981,29980]} 1. e4 {[%emt 0:05:26]} c5 {[%emt 0:00:07]} 2. Nf3 {[%emt 0:00:10]} e6 {[%emt 0:00:06]} 3. d4 {[%emt 0:00:36]} cxd4 {[%emt 0:00:08]} 4. Nxd4 {[%emt 0:00:05]} Nf6 {[%emt 0:00:08][%cal Bg8f6,Bf6d5,Bd5e3][%mdl 32]} 5. Nc3 {[%emt 0:00:08]} Nc6 {[%emt 0:00:06]} 6. Nxc6 {[%emt 0:00:17]} bxc6 {[%emt 0:00:09]} 7. e5 {[%emt 0:00:12]} Nd5 {[%emt 0:00:07]} 8. Ne4 {[%emt 0:00:08]} Qc7 {[%emt 0:00:12]} 9. f4 {[%emt 0:00:13]} Qb6 {[%emt 0:00:11]} 10. c4 {[%emt 0:00:34]} Ne3 {[%emt 0:00:13]} 11. Qd3 {[%emt 0:00:18]} Bb4+ {[%emt 0:00:13]} 12. Bd2 {[%emt 0:00:30] B45: Sicilian Four Knights.} Ba6 {[%emt 0:00:32]} 13. Bxb4 {[%emt 0:08:06]} Qxb4+ {[%emt 0:00:10]} 14. Kf2 $1 {[%emt 0:00:23] White is slightly better.} Qxb2+ {[%emt 0:00:11]} 15. Be2 {[%emt 0:00:13]} Nxc4 {[%emt 0:01:39]} 16. Rab1 {[%emt 0:07:07]} Nxe5 $1 {[%emt 0:02:21] [#]} 17. fxe5 {[%emt 0:00:57]} Qxe5 {[%emt 0:00:11]} 18. Qxa6 {[%emt 0:04:53]} Qxe4 {[%emt 0:00:43]} 19. Rhd1 {[%emt 0:00:32] Active counter play!} O-O {[%emt 0:03:44]} 20. Bf3 $36 {[%emt 0:08:01][%mdl 2048] White fights for an advantage.} Qf5 {[%emt 0:00:54] [#]} 21. Rb7 $146 {[%emt 0:03:02]} ({Predecessor:} 21. Kg1 Rfc8 22. Rb7 d5 23. Rf1 Qe5 24. Bd1 f6 25. Ba4 Qd6 26. Rfb1 Kh8 27. Qe2 {1-0 (59) O'Toole,R (2135)-Morcin,T (2073) LSS email 2013}) 21... Qc2+ {[%emt 0:14:16]} (21... Qc5+ $11 {keeps the balance.} 22. Kf1 d5) 22. Qe2 $16 {[%emt 0:10:46]} Qxe2+ {[%emt 0:03:43]} 23. Bxe2 {[%emt 0:04:50][%cal Bf3e2,Be2a6,Ba6b5][%mdl 32]} d5 {[%emt 0:00:36]} 24. Rc1 {[%emt 0:00:34][%mdl 1024] White has strong compensation.} Rfc8 {[%emt 0:02:52]} 25. Ba6 {[%emt 0:05:44]} g6 {[%emt 0:05:31]} 26. a4 {[%emt 0:02:50]} Rab8 {[%emt 0:14:59]} (26... Kg7 $16) 27. Rcb1 {[%emt 0:10:08]} (27. Rxa7 $18 Rb2+ 28. Kg1) 27... Rxb7 $14 {[%emt 0:04:03]} 28. Rxb7 {[%emt 0:00:07][%mdl 4096] Endgame KRB-KR} c5 $2 {[%emt 0:04:23][%mdl 8192] Black cannot hold the game after this.} (28... Ra8 $14) 29. Rxa7 $18 {[%emt 0:02:03]} Rc6 {[%emt 0:03:52]} 30. Bb5 {[%emt 0:05:26]} Rc8 {[%emt 0:03:20]} 31. Ke2 {[%emt 0:04:21]} c4 {[%emt 0:03:17]} 32. Rd7 {[%emt 0:01:29]} Rc5 $2 {[%emt 0:04:40]} ({Less strong is} 32... c3 33. Kd1 Rc5 34. Kc1) (32... Kg7 {was called for.} 33. Rb7 Ra8) 33. Rd6 {[%emt 0:06:52] Strongly threatening Rc6.} Kf8 {[%emt 0:13:04]} (33... d4 $142 34. Rxd4 Rh5) 34. Rc6 {[%emt 0:00:32]} Rxc6 {[%emt 0:00:12]} 35. Bxc6 {[%emt 0:00:05] Black must now prevent a5. KB-KP} Ke7 {[%emt 0:00:13]} 36. a5 {[%emt 0:00:11] Threatens to win with a6.} Kd6 {[%emt 0:00:08]} 37. Be8 {[%emt 0:00:06]} f6 {[%emt 0:08:53]} 38. Bf7 {[%emt 0:00:52]} d4 {[%emt 0:01:21] [#]} 39. Bxe6 $1 {[%emt 0:01:15][%mdl 512]} c3 {[%emt 0:01:13]} (39... d3+ 40. Kd2) 40. Bg8 {[%emt 0:01:57] a6 would kill now.} h6 {[%emt 0:02:06]} 41. Bh7 {[%emt 0:30:28] White mates.} g5 {[%emt 0:30:12]} 42. g4 {[%emt 0:01:04]} Kc5 {[%emt 0:03:44]} 43. Bd3 {[%emt 0:02:45]} c2 {[%emt 0:00:00]} 44. Kd2 {[%emt 0:00:00]} Kd5 {[%emt 0:00:24] Weighted Error Value: White=0.09 (flawless) /Black=0.84} 1-0

[Event "Teplice Open 2022"]
[Site "Teplice"]
[Date "2022.06.25"]
[Round "8.13"]
[White "Kraus, Tomas"]
[Black "Fataliyeva, Ulviyya"]
[Result "1/2-1/2"]
[ECO "B10"]
[WhiteElo "2472"]
[BlackElo "2348"]
[Annotator "TA"]
[PlyCount "67"]
[EventDate "2022.06.18"]
[EventType "swiss"]
[EventCountry "CZE"]
[SourceTitle "playchess.com"]
[Source "ChessBase"]
[SourceQuality "1"]
[TimeControl "40/5400+30:1800+30"]

{[%evp 9,67,4,0,14,17,2,20,16,22,21,25,34,28,23,23,0,0,0,0,0,6,0,12,4,14,-8,0,-15,-20,-20,33,-22,-18,-18,-19,-25,-11,-16,0,0,23,0,0,0,0,-18,0,0,0,0,0,0,0,-9,-7,-10,0,0,0,-6]} 1. e4 {[%emt 0:00:03]} c6 {[%emt 0:00:24]} 2. Nf3 {[%emt 0:00:43][%cal Bg1f3,Bf3d2,Bd2c4][%mdl 32]} d5 {[%emt 0:00:05]} 3. d3 {[%emt 0:00:05]} dxe4 {[%emt 0:00:05]} 4. dxe4 {[%emt 0:00:04]} Qxd1+ {[%emt 0:00:05]} 5. Kxd1 {[%emt 0:00:07]} Nf6 {[%emt 0:00:04]} 6. Nfd2 {[%emt 0:00:58] B10: Caro-Kann: 2 d3 and 2 c4.} h5 {[%emt 0:03:21]} 7. h4 {[%emt 0:00:05]} Ng4 {[%emt 0:00:42]} 8. Ke1 {[%emt 0:00:51]} e5 {[%emt 0:00:22] [#]} 9. Nc3 $146 {[%emt 0:05:28]} ({Predecessor:} 9. Nc4 Nd7 10. f3 Ngf6 11. a4 Bc5 12. c3 O-O 13. b4 Be7 14. Nbd2 Re8 15. Nb3 {½-½ (85) Deac,B (2651)-Donchenko,A (2645) Chess.com INT 2021}) 9... Be6 {[%emt 0:06:20]} 10. Bc4 {[%emt 0:05:38]} Bxc4 {[%emt 0:10:43]} 11. Nxc4 {[%emt 0:00:05]} b5 {[%emt 0:00:22]} 12. Nd2 {[%emt 0:07:38]} Na6 {[%emt 0:11:51] And now ...Nb4 would win.} 13. a3 {[%emt 0:00:19] Against Nb4} Nc5 {[%emt 0:03:10]} 14. b4 {[%emt 0:33:04]} Nb7 {[%emt 0:15:32]} 15. Ke2 {[%emt 0:00:19]} Be7 {[%emt 0:03:10]} 16. f3 {[%emt 0:01:21]} Nf6 {[%emt 0:00:56]} 17. Rb1 {[%emt 0:02:45]} a5 {[%emt 0:06:07]} 18. Nd1 {[%emt 0:01:45]} axb4 {[%emt 0:05:32]} 19. axb4 {[%emt 0:00:04]} Ra4 {[%emt 0:00:10]} (19... Nd7 $11) 20. c3 {[%emt 0:06:11]} (20. Nb2 $14 Ra2 21. Nd3) 20... Nd7 $11 {[%emt 0:00:05]} 21. Nb2 {[%emt 0:03:29]} Ra2 {[%emt 0:02:42]} 22. Nd3 {[%emt 0:00:39]} Nd6 {[%emt 0:01:53]} 23. Rb2 {[%emt 0:02:17]} Rxb2 {[%emt 0:04:32]} 24. Bxb2 {[%emt 0:00:37]} Nc4 {[%emt 0:00:14]} 25. Bc1 {[%emt 0:04:20]} Ndb6 {[%emt 0:01:06] The position is equal.} 26. Nxc4 {[%emt 0:02:11]} Nxc4 {[%emt 0:00:28]} 27. Nb2 {[%emt 0:07:42]} O-O {[%emt 0:02:17]} 28. Nxc4 {[%emt 0:00:45]} bxc4 {[%emt 0:00:03][%mdl 4096] Endgame KRB-KRB} 29. g3 {[%emt 0:01:26]} Ra8 {[%emt 0:04:32]} 30. Rd1 {[%emt 0:02:32]} Ra2+ {[%emt 0:00:21]} 31. Rd2 {[%emt 0:00:49]} Ra1 {[%emt 0:00:07]} 32. Rd1 {[%emt 0:00:47]} Ra2+ {[%emt 0:00:08]} 33. Rd2 {[%emt 0:00:28]} Ra1 {[%emt 0:00:04]} 34. Rd1 {[%emt 0:00:36] An uneventful encounter.  Weighted Error Value: White=0.09 (flawless) /Black=0.08 (flawless)} 1/2-1/2

[Event "Teplice Open 2022"]
[Site "Teplice"]
[Date "2022.06.25"]
[Round "8.14"]
[White "Raja Harshit"]
[Black "Souhardo Basak"]
[Result "1-0"]
[ECO "B94"]
[WhiteElo "2479"]
[BlackElo "2357"]
[Annotator "TA"]
[PlyCount "75"]
[EventDate "2022.06.18"]
[EventType "swiss"]
[EventCountry "CZE"]
[SourceTitle "playchess.com"]
[Source "ChessBase"]
[SourceQuality "1"]
[TimeControl "40/5400+30:1800+30"]

{[%evp 11,75,8,32,12,29,27,50,0,0,0,0,0,0,8,11,-27,156,0,0,0,0,0,0,0,149,136,137,171,171,153,139,143,204,220,276,237,210,189,286,266,262,163,182,180,257,261,279,286,275,280,269,202,254,260,297,291,298,276,359,359,349,353,408,349,404,342]} 1. e4 {[%emt 0:12:54]} c5 {[%emt 0:00:10]} 2. Nf3 {[%emt 0:00:07]} d6 {[%emt 0:00:05]} 3. d4 {[%emt 0:00:06]} cxd4 {[%emt 0:00:07]} 4. Nxd4 {[%emt 0:00:04]} Nf6 {[%emt 0:00:08]} 5. Nc3 {[%emt 0:00:04]} a6 {[%emt 0:00:08]} 6. Bg5 {[%emt 0:00:40]} Nbd7 {[%emt 0:00:10]} 7. Qe2 {[%emt 0:00:05] 7.Qe2 is a critical line. B94: Sicilian Najdorf: 6 Bg5 Nbd7.} Qc7 {[%emt 0:00:08]} 8. O-O-O {[%emt 0:00:30]} e6 {[%emt 0:00:09]} 9. g3 {[%emt 0:00:13] [#]} (9. f4 $14) 9... b5 $146 {[%emt 0:00:18][%cal Bb7b5,Bb5b4,Bb4c3][%mdl 32]} ({Predecessor:} 9... Be7 10. f4 b5 11. Bg2 b4 12. e5 bxc3 13. exf6 gxf6 14. Bxa8 Qb8 15. bxc3 Qxa8 {1-0 (25) Sheng,J (2477)-Souhardo,B (2382) Budapest 2021}) 10. Bg2 {[%emt 0:00:15][%cal Oe4e5]} b4 $1 {[%emt 0:28:08]} 11. e5 {[%emt 0:03:32]} bxc3 {[%emt 0:00:57]} 12. exf6 {[%emt 0:00:06]} gxf6 {[%emt 0:02:35]} 13. Bf4 {[%emt 0:00:48]} (13. Bxa8 $5 {[%cal Rg5f4]} cxb2+ 14. Kxb2 fxg5 15. Bg2 $11) 13... Ne5 $2 {[%emt 0:11:54]} 14. Bxe5 $2 {[%emt 0:16:40] White is more active.} (14. Bxa8 $16 {Black must now prevent b3.} Qb8 15. b3 $1 (15. bxc3 Qxa8 16. Rhe1 Bb7 $16) 15... Qxa8 16. Rhe1) 14... fxe5 {[%emt 0:02:29]} 15. Bxa8 {[%emt 0:02:17] Nb3 is the strong threat.} exd4 {[%emt 0:00:58]} 16. Rxd4 {[%emt 0:10:01] And now Rc4 would win.} Bh6+ {[%emt 0:11:00]} 17. f4 $1 {[%emt 0:01:23]} Bb7 {[%emt 0:00:23]} (17... O-O $1 $11 {remains equal.}) 18. Bxb7 $16 Qxb7 {[%emt 0:00:01]} 19. Qe4 {[%emt 0:10:32]} Qxb2+ {[%emt 0:02:39]} 20. Kd1 {[%emt 0:00:25] Chess con chili.} O-O {[%emt 0:02:44] Strongly threatening ...d5.} 21. Rxd6 {[%emt 0:03:20]} Qb5 {[%emt 0:06:01]} (21... Qb8 $16 {was necessary.} 22. Rd7 (22. Rxa6 $2 Rd8+ 23. Ke2 Qb5+ 24. Kf3 Qxa6 $19) 22... Qb5) 22. a4 $18 {[%emt 0:02:14]} Qh5+ {[%emt 0:01:11]} 23. Qe2 {[%emt 0:01:38]} Qc5 {[%emt 0:00:02]} 24. Qd3 {[%emt 0:00:13]} (24. Qxa6 $6 Rb8 25. Ke2 Bf8 $16) 24... Bg7 {[%emt 0:10:09]} (24... Qf2 $142 25. h4 (25. Rxa6 $2 Rb8 $19) 25... Qg2) 25. Ke2 {[%emt 0:01:52]} ({Less strong is} 25. Rxa6 Bf6 26. Rd6 Rb8 $16) (25. Qxa6 $6 Rb8 26. Ke2 Bf8 $16) 25... Bf6 {[%emt 0:00:38]} 26. Rf1 {[%emt 0:05:58] Threatens to win with f5.} ({But not} 26. Qxa6 Rb8 27. Kf3 Rb2 $18) 26... Qh5+ {[%emt 0:02:13]} 27. Qf3 {[%emt 0:00:37]} Qc5 {[%emt 0:03:25]} (27... Qf5 {might work better.}) 28. Rfd1 {[%emt 0:01:48]} Qc4+ {[%emt 0:02:54]} 29. Qd3 {[%emt 0:01:01]} Qxa4 {[%emt 0:00:03]} 30. Rxa6 {[%emt 0:00:15]} Qb4 {[%emt 0:00:06]} 31. Rda1 {[%emt 0:05:08]} Qb7 {[%emt 0:04:10] [#]} 32. Qf3 $1 {[%emt 0:01:02]} ({Weaker is} 32. Kf2 Rd8 33. Rd6 Rxd6 34. Qxd6 Qe4 $11) 32... Qb5+ {[%emt 0:02:37]} 33. Kf2 {[%emt 0:00:27]} Qf5 {[%emt 0:00:03]} 34. Qd3 {[%emt 0:03:01] Hoping for Qxf5.} Qh5 {[%emt 0:05:16]} 35. Kg2 {[%emt 0:00:05]} Kg7 {[%emt 0:00:17]} 36. R1a5 {[%emt 0:00:17]} Qh6 {[%emt 0:01:38]} 37. Rd6 {[%emt 0:00:19]} Rb8 {[%emt 0:01:24]} 38. Rd7 {[%emt 0:00:17] Weighted Error Value: White=0.17 (very precise) /Black=0.38} 1-0